[Event "Maria Albulet Memorial 2017"]
[Site "Braila"]
[Date "2017.10.08"]
[Round "2"]
[White "Coman, Ana-Cristina"]
[Black "Andres, Marina-Corina"]
[Result "0-1"]
[ECO "A46"]
[WhiteElo "1454"]
[BlackElo "1581"]
[Annotator "NA"]
[PlyCount "142"]
[EventDate "2017.??.??"]
[EventCountry "ROU"]
[SourceTitle "playchess.com"]
[Source "ChessBase"]
[SourceQuality "1"]
[TimeControl "40/5400+30:900+30"]

1. d4 {[%emt 0:00:00]} Nf6 {[%emt 0:04:09]} 2. Nf3 {[%emt 0:00:00]} c5 {[%emt 0:00:44]} 3. e3 {[%emt 0:00:00]} cxd4 {[%emt 0:00:09]} 4. exd4 {[%emt 0:00:00]} d5 {[%emt 0:00:19]} 5. Bd3 {[%emt 0:00:49]} Bg4 {[%emt 0:00:29]} 6. Nbd2 {[%emt 0:01:40]} e6 {[%emt 0:01:29]} 7. O-O {[%emt 0:05:42]} Bd6 {[%emt 0:01:04]} 8. c3 {[%emt 0:05:25]} O-O {[%emt 0:01:03]} 9. Qc2 {[%emt 0:02:20]} Nc6 {[%emt 0:03:48]} 10. Re1 {[%emt 0:06:19]} Rc8 {[%emt 0:02:42]} 11. a3 {[%emt 0:05:47]} a6 {[%emt 0:05:37]} 12. b3 {[%emt 0:09:35]} Qc7 {[%emt 0:28:22]} 13. h3 {[%emt 0:07:47]} Bf5 {[%emt 0:08:37]} 14. Bxf5 {[%emt 0:07:36]} exf5 {[%emt 0:00:09]} 15. Bb2 {[%emt 0:00:44]} Ne4 {[%emt 0:03:19]} 16. c4 {[%emt 0:07:45]} Ne7 {[%emt 0:10:15]} 17. Qd3 {[%emt 0:18:34]} Nxd2 {[%emt 0:07:24]} 18. Nxd2 {[%emt 0:00:21]} Qd7 {[%emt 0:02:14]} 19. Re2 {[%emt 0:02:44]} dxc4 {[%emt 0:05:33]} 20. bxc4 {[%emt 0:01:01]} Ng6 {[%emt 0:02:01]} 21. d5 {[%emt 0:05:37]} Nf4 {[%emt 0:02:19]} 22. Qf3 {[%emt 0:01:08]} Nxe2+ {[%emt 0:00:47]} 23. Qxe2 {[%emt 0:00:03]} Rfe8 {[%emt 0:01:05]} 24. Qd3 {[%emt 0:01:10]} Be5 {[%emt 0:01:15]} 25. Bxe5 {[%emt 0:00:48]} Rxe5 {[%emt 0:00:08]} 26. Nf3 {[%emt 0:00:13]} Re4 {[%emt 0:02:22]} 27. Nd2 {[%emt 0:01:13]} Re7 {[%emt 0:00:23]} 28. Rc1 {[%emt 0:00:58]} Rce8 {[%emt 0:00:38]} 29. Nf3 {[%emt 0:00:31]} Rd8 {[%emt 0:01:07]} 30. Nd4 {[%emt 0:04:06]} g6 {[%emt 0:01:53]} 31. Nb3 {[%emt 0:00:52]} Rde8 {[%emt 0:00:50]} 32. Qc3 {[%emt 0:01:49]} Qd6 {[%emt 0:01:03]} 33. Na5 {[%emt 0:00:56]} Rc8 {[%emt 0:01:32]} 34. Qb3 {[%emt 0:01:01]} Qc7 {[%emt 0:01:14]} 35. Qb4 {[%emt 0:01:29]} Re4 {[%emt 0:00:34]} 36. Qc3 {[%emt 0:01:17]} Qc5 {[%emt 0:00:54]} 37. Nxb7 {[%emt 0:00:37]} Qxc4 {[%emt 0:00:21]} 38. Qxc4 {[%emt 0:00:24]} Rexc4 {[%emt 0:00:11]} 39. Rd1 {[%emt 0:00:32]} Rc1 {[%emt 0:00:28]} 40. Rxc1 {[%emt 0:00:00]} Rxc1+ {[%emt 0:00:02]} 41. Kh2 {[%emt 0:00:10]} Rc7 {[%emt 0:01:11]} 42. Na5 {[%emt 0:01:56]} Rc5 {[%emt 0:02:19]} 43. Nc6 {[%emt 0:00:10]} Kf8 {[%emt 0:01:24]} 44. Nb8 {[%emt 0:04:33]} Ra5 {[%emt 0:00:50]} 45. d6 {[%emt 0:01:07]} Rxa3 {[%emt 0:01:08]} 46. Nd7+ {[%emt 0:00:30]} Ke8 {[%emt 0:00:57]} 47. Nf6+ {[%emt 0:02:01]} Kd8 {[%emt 0:00:21]} 48. Nxh7 {[%emt 0:00:28]} Kd7 {[%emt 0:00:12]} 49. Ng5 {[%emt 0:00:06]} f6 {[%emt 0:00:55]} 50. Nh7 {[%emt 0:00:41]} Kxd6 {[%emt 0:00:16]} 51. Nxf6 {[%emt 0:00:06]} a5 {[%emt 0:00:30]} 52. h4 {[%emt 0:01:10]} a4 {[%emt 0:00:13]} 53. Nh7 {[%emt 0:00:06]} Rb3 {[%emt 0:00:43]} 54. Nf8 {[%emt 0:00:10]} a3 {[%emt 0:00:30]} 55. Nxg6 {[%emt 0:00:21]} a2 {[%emt 0:00:08]} 56. h5 {[%emt 0:00:08]} a1=Q {[%emt 0:00:11]} 57. h6 {[%emt 0:00:15]} Rb8 {[%emt 0:00:20]} 58. h7 {[%emt 0:00:51]} Rh8 {[%emt 0:00:17]} 59. Nxh8 {[%emt 0:00:06]} Qxh8 {[%emt 0:00:04]} 60. Kg3 {[%emt 0:00:18]} Qxh7 {[%emt 0:00:10]} 61. Kf4 {[%emt 0:00:10]} Ke6 {[%emt 0:00:18]} 62. g4 {[%emt 0:00:21]} fxg4 {[%emt 0:00:08]} 63. Kxg4 {[%emt 0:00:07]} Qf5+ {[%emt 0:00:11]} 64. Kg3 {[%emt 0:00:04]} Ke5 {[%emt 0:00:12]} 65. f3 {[%emt 0:00:15]} Qf4+ {[%emt 0:00:07]} 66. Kg2 {[%emt 0:00:05]} Kd4 {[%emt 0:00:02]} 67. Kh1 {[%emt 0:00:00]} Ke3 {[%emt 0:00:13]} 68. Kg2 {[%emt 0:00:05]} Qxf3+ {[%emt 0:00:08]} 69. Kg1 {[%emt 0:00:16]} Qe2 {[%emt 0:00:26]} 70. Kh1 {[%emt 0:00:02]} Kf3 {[%emt 0:00:13]} 71. Kg1 {[%emt 0:00:02]} Qg2# {[%emt 0:00:06]} 0-1

[Event "Maria Albulet Memorial 2017"]
[Site "Braila"]
[Date "2017.10.09"]
[Round "3"]
[White "Petrenko, Svetlana"]
[Black "Rakhmangulova, Anastasiya"]
[Result "0-1"]
[ECO "A58"]
[WhiteElo "2140"]
[BlackElo "2242"]
[Annotator "ChessBase"]
[PlyCount "102"]
[EventDate "2017.??.??"]
[EventCountry "ROU"]
[SourceTitle "playchess.com"]
[Source "ChessBase"]
[SourceQuality "1"]
[TimeControl "40/5400+30:900+30"]

1. d4 {[%emt 0:00:00]} Nf6 {[%emt 0:00:08]} 2. c4 {[%emt 0:00:00]} c5 {[%emt 0:00:08]} 3. d5 {[%emt 0:00:07]} b5 {[%emt 0:00:07]} 4. cxb5 {[%emt 0:00:29]} a6 {[%emt 0:00:05]} 5. bxa6 {[%emt 0:00:10]} Bxa6 {[%emt 0:00:07]} 6. Nc3 {[%emt 0:00:35]} d6 {[%emt 0:00:09]} 7. g3 {[%emt 0:01:09]} g6 {[%emt 0:00:08]} 8. Bg2 {[%emt 0:00:07]} Bg7 {[%emt 0:00:07]} 9. Nf3 {[%emt 0:00:35]} O-O {[%emt 0:00:09]} 10. O-O {[%emt 0:00:05]} Nbd7 {[%emt 0:00:05]} 11. Qc2 {[%emt 0:03:34]} Qa5 {[%emt 0:00:25]} 12. Rd1 {[%emt 0:06:51]} Rfb8 {[%emt 0:00:42]} 13. Bd2 {[%emt 0:01:16]} Ng4 {[%emt 0:00:54]} 14. h3 {[%emt 0:05:00]} Nge5 {[%emt 0:00:41]} 15. Nxe5 {[%emt 0:02:04]} Nxe5 {[%emt 0:00:10]} 16. b3 {[%emt 0:00:33]} c4 {[%emt 0:16:26]} 17. f4 {[%emt 0:03:28]} Qc5+ {[%emt 0:11:15]} 18. Kh2 {[%emt 0:00:41]} cxb3 {[%emt 0:01:08]} 19. axb3 {[%emt 0:00:08]} Bxe2 {[%emt 0:03:25]} 20. Rxa8 {[%emt 0:23:05]} Rxa8 {[%emt 0:00:07]} 21. fxe5 {[%emt 0:00:05]} Bxd1 {[%emt 0:00:15]} 22. Qxd1 {[%emt 0:00:03]} Bxe5 {[%emt 0:00:17]} 23. Ne4 {[%emt 0:05:19]} Qb6 {[%emt 0:20:49]} 24. Bc3 {[%emt 0:06:28]} Bxc3 {[%emt 0:10:05]} 25. Nxc3 {[%emt 0:00:02]} Ra3 {[%emt 0:03:38]} 26. Ne4 {[%emt 0:06:37]} Rxb3 {[%emt 0:01:57]} 27. Qc2 {[%emt 0:03:04]} Qe3 {[%emt 0:06:42]} 28. Qc8+ {[%emt 0:03:21]} Kg7 {[%emt 0:00:07]} 29. Qc7 {[%emt 0:02:51]} Rb2 {[%emt 0:02:39]} 30. Qc3+ {[%emt 0:05:32]} Qxc3 {[%emt 0:00:02]} 31. Nxc3 {[%emt 0:00:01]} e6 {[%emt 0:06:16]} 32. Nd1 {[%emt 0:05:13]} Rd2 {[%emt 0:01:45]} 33. Ne3 {[%emt 0:03:50]} Re2 {[%emt 0:00:18]} 34. Nd1 {[%emt 0:00:41]} Kf6 {[%emt 0:05:22]} 35. Nc3 {[%emt 0:00:51]} Rc2 {[%emt 0:00:13]} 36. Ne4+ {[%emt 0:00:31]} Ke7 {[%emt 0:02:53]} 37. dxe6 {[%emt 0:03:40]} fxe6 {[%emt 0:00:17]} 38. Kg1 {[%emt 0:00:05]} d5 {[%emt 0:00:56]} 39. Ng5 {[%emt 0:00:54]} h6 {[%emt 0:02:02]} 40. Nf3 {[%emt 0:00:00]} Kd6 {[%emt 0:00:18]} 41. Ne1 {[%emt 0:00:58]} Ra2 {[%emt 0:01:36]} 42. g4 {[%emt 0:14:26]} e5 {[%emt 0:01:25]} 43. Nd3 {[%emt 0:01:46]} e4 {[%emt 0:01:30]} 44. Nf4 {[%emt 0:01:33]} g5 {[%emt 0:01:40]} 45. Nh5 {[%emt 0:00:01]} Ke5 {[%emt 0:01:11]} 46. Ng3 {[%emt 0:01:19]} d4 {[%emt 0:04:20]} 47. Nf5 {[%emt 0:03:02]} d3 {[%emt 0:01:05]} 48. Bf1 {[%emt 0:01:44]} Kf4 {[%emt 0:06:43]} 49. Nd4 {[%emt 0:03:05]} d2 {[%emt 0:00:10]} 50. Ne2+ {[%emt 0:00:42]} Ke3 {[%emt 0:00:35]} 51. Nc3 {[%emt 0:00:03]} Ra1 {[%emt 0:00:12]} 0-1

[Event "Maria Albulet Memorial 2017"]
[Site "Braila"]
[Date "2017.10.09"]
[Round "3"]
[White "Makropoulou, Marina"]
[Black "Didiliuc, Dariana-Gabriela"]
[Result "1-0"]
[ECO "B30"]
[WhiteElo "2136"]
[BlackElo "1779"]
[Annotator "NA"]
[PlyCount "79"]
[EventDate "2017.??.??"]
[EventCountry "ROU"]
[SourceTitle "playchess.com"]
[Source "ChessBase"]
[SourceQuality "1"]
[TimeControl "40/5400+30:900+30"]

1. e4 {[%emt 0:00:00]} c5 {[%emt 0:02:52]} 2. Nf3 {[%emt 0:00:00]} Nc6 {[%emt 0:00:12]} 3. Bb5 {[%emt 0:00:00]} d6 {[%emt 0:00:21]} 4. O-O {[%emt 0:00:41]} Nf6 {[%emt 0:00:25]} 5. Re1 {[%emt 0:01:08]} a6 {[%emt 0:01:19]} 6. Bxc6+ $1 {[%emt 0:01:18] LiveBook: 3 Games} bxc6 {[%emt 0:00:10]} 7. e5 {[%emt 0:00:10]} Nd5 {[%emt 0:07:40]} 8. exd6 {[%emt 0:01:00]} e6 {[%emt 0:01:17]} 9. Na3 {[%emt 0:02:46]} Bxd6 {[%emt 0:02:04]} 10. Nc4 {[%emt 0:00:40]} Bb8 {[%emt 0:02:33]} 11. b3 {[%emt 0:01:59]} O-O {[%emt 0:01:46]} 12. Ba3 {[%emt 0:02:25]} Ba7 {[%emt 0:01:47]} 13. d4 $16 {[%emt 0:06:07]} Qe7 {[%emt 0:03:51]} 14. Nfe5 {[%emt 0:06:37]} Bb7 {[%emt 0:04:33]} 15. dxc5 {[%emt 0:07:42]} Rfd8 {[%emt 0:03:26]} 16. Qf3 {[%emt 0:02:17]} f6 {[%emt 0:04:35]} 17. Nd3 {[%emt 0:00:11]} e5 {[%emt 0:00:55]} 18. Nd6 {[%emt 0:03:12]} Rab8 {[%emt 0:00:53]} 19. h3 {[%emt 0:18:05]} Ba8 {[%emt 0:03:01]} 20. Qg4 {[%emt 0:09:24]} Nc7 {[%emt 0:05:44]} 21. Qc4+ {[%emt 0:03:42]} Kf8 {[%emt 0:00:15]} 22. Qh4 {[%emt 0:01:28]} g5 {[%emt 0:04:27]} 23. Qc4 {[%emt 0:07:33]} Nb5 {[%emt 0:00:47]} 24. Bb4 {[%emt 0:01:32]} Nxd6 {[%emt 0:01:35]} 25. cxd6 {[%emt 0:00:06]} Qb7 {[%emt 0:00:13]} 26. Bc5 {[%emt 0:02:27]} Kg7 {[%emt 0:04:04]} 27. b4 {[%emt 0:00:20]} Rbc8 {[%emt 0:06:14]} 28. Rad1 {[%emt 0:01:37]} Bb8 {[%emt 0:04:56]} 29. Nb2 {[%emt 0:06:17]} Rd7 {[%emt 0:08:49]} 30. Qg4 {[%emt 0:00:34]} Rcd8 {[%emt 0:01:49]} 31. Nc4 {[%emt 0:00:57]} h6 {[%emt 0:01:42]} 32. h4 {[%emt 0:00:25]} h5 {[%emt 0:01:54]} 33. Qe4 {[%emt 0:00:38]} gxh4 {[%emt 0:02:24]} 34. Qxh4 {[%emt 0:01:09]} Rh8 {[%emt 0:01:20]} 35. Re3 {[%emt 0:00:22]} Rh6 {[%emt 0:00:52]} 36. Rg3+ {[%emt 0:00:52]} Kh7 {[%emt 0:00:13]} 37. Ne3 {[%emt 0:03:09]} Qc8 {[%emt 0:01:06]} 38. Nf5 {[%emt 0:02:17]} Qf8 {[%emt 0:00:07]} 39. Nxh6 {[%emt 0:01:09]} Qxh6 {[%emt 0:00:12]} 40. Be3 {[%emt 0:00:00]} 1-0

[Event "Maria Albulet Memorial 2017"]
[Site "Braila"]
[Date "2017.10.09"]
[Round "3"]
[White "Nastase, Andreea-Cristina"]
[Black "Cosman, Andreea-Marioara"]
[Result "1/2-1/2"]
[ECO "A45"]
[WhiteElo "1989"]
[BlackElo "2125"]
[Annotator "NA"]
[PlyCount "92"]
[EventDate "2017.??.??"]
[EventCountry "ROU"]
[SourceTitle "playchess.com"]
[Source "ChessBase"]
[SourceQuality "1"]
[TimeControl "40/5400+30:900+30"]

1. d4 {[%emt 0:00:00]} Nf6 {[%emt 0:00:09]} 2. f3 {[%emt 0:00:00]} c5 {[%emt 0:00:42]} 3. d5 {[%emt 0:04:33]} e6 {[%emt 0:04:35]} 4. Nc3 {[%emt 0:05:18]} exd5 {[%emt 0:00:22]} 5. Nxd5 {[%emt 0:00:09]} Nxd5 {[%emt 0:00:05]} 6. Qxd5 {[%emt 0:00:05]} d6 {[%emt 0:00:05]} 7. Bg5 {[%emt 0:01:18]} Qb6 {[%emt 0:02:11]} 8. Qb3 {[%emt 0:05:29]} Qa5+ {[%emt 0:04:14]} 9. Bd2 {[%emt 0:03:03]} Qc7 {[%emt 0:00:07]} 10. e4 $14 {[%emt 0:00:34]} Nc6 {[%emt 0:00:21]} 11. Bc4 {[%emt 0:02:50]} a6 {[%emt 0:13:51]} 12. a4 {[%emt 0:02:17]} Nd4 {[%emt 0:04:56]} 13. Qd3 {[%emt 0:00:13]} Bd7 {[%emt 0:01:13]} 14. c3 {[%emt 0:04:10]} Nc6 {[%emt 0:00:23]} 15. Bf4 {[%emt 0:04:11]} Na5 {[%emt 0:06:56]} 16. Bd5 {[%emt 0:01:13]} c4 {[%emt 0:02:10]} 17. Qe2 {[%emt 0:00:11]} Be7 {[%emt 0:01:26]} 18. Nh3 {[%emt 0:07:23]} O-O {[%emt 0:01:40]} 19. Nf2 {[%emt 0:00:20]} Rab8 {[%emt 0:06:16]} 20. O-O {[%emt 0:00:47]} Nb3 {[%emt 0:06:02]} 21. Rad1 {[%emt 0:04:29]} Bxa4 {[%emt 0:03:10]} 22. e5 {[%emt 0:05:08]} Rbd8 {[%emt 0:00:56]} 23. exd6 {[%emt 0:02:47]} Bxd6 {[%emt 0:01:38]} 24. Bxd6 {[%emt 0:00:05]} Rxd6 {[%emt 0:00:36]} 25. Ne4 {[%emt 0:02:51]} Rh6 {[%emt 0:06:51]} 26. f4 {[%emt 0:01:35]} Nc5 {[%emt 0:04:38]} 27. Rd4 {[%emt 0:01:43]} Bb5 {[%emt 0:19:17]} 28. Nxc5 {[%emt 0:04:34]} Qxc5 {[%emt 0:00:05]} 29. Bxc4 {[%emt 0:00:23]} Bc6 {[%emt 0:00:56]} 30. b4 {[%emt 0:01:02]} Qb6 {[%emt 0:02:37]} 31. Kh1 {[%emt 0:00:13]} Rg6 {[%emt 0:00:28]} 32. Bd5 {[%emt 0:00:12]} Bb5 {[%emt 0:01:27]} 33. Bc4 {[%emt 0:00:27]} Bc6 {[%emt 0:00:06]} 34. Bd5 {[%emt 0:00:03]} Bb5 {[%emt 0:00:07]} 35. Bc4 {[%emt 0:00:06]} Re8 {[%emt 0:02:40]} 36. Qa2 {[%emt 0:09:02]} Bxc4 {[%emt 0:01:41]} 37. Qxc4 {[%emt 0:00:06]} Rc6 {[%emt 0:00:40]} 38. Qb3 {[%emt 0:01:31]} Qc7 {[%emt 0:01:18]} 39. c4 {[%emt 0:01:15]} Rce6 {[%emt 0:00:27]} 40. h3 {[%emt 0:00:00]} Qc6 {[%emt 0:01:43]} 41. Qf3 {[%emt 0:03:46]} Qb6 {[%emt 0:01:30]} 42. c5 {[%emt 0:00:26]} Qb5 {[%emt 0:00:08]} 43. f5 {[%emt 0:02:10]} Re3 {[%emt 0:01:57]} 44. Qd1 {[%emt 0:01:38]} Qc6 {[%emt 0:02:41]} 45. Qg4 {[%emt 0:04:21]} Qf6 {[%emt 0:01:11]} 46. Rd6 {[%emt 0:01:37]} Qe5 {[%emt 0:03:30]} 1/2-1/2

[Event "Maria Albulet Memorial 2017"]
[Site "Braila"]
[Date "2017.10.09"]
[Round "3"]
[White "Popa, Catalina-Elena"]
[Black "Coman, Ana-Cristina"]
[Result "1-0"]
[ECO "C31"]
[WhiteElo "1731"]
[BlackElo "1454"]
[Annotator "NA"]
[PlyCount "81"]
[EventDate "2017.??.??"]
[EventCountry "ROU"]
[SourceTitle "playchess.com"]
[Source "ChessBase"]
[SourceQuality "1"]
[TimeControl "40/5400+30:900+30"]

1. e4 {[%emt 0:00:00]} e5 {[%emt 0:00:03]} 2. f4 {[%emt 0:00:00]} d5 {[%emt 0:00:11]} 3. exd5 {[%emt 0:00:00]} exf4 {[%emt 0:00:05]} 4. Bc4 {[%emt 0:00:00]} Nf6 {[%emt 0:01:01]} 5. Nc3 {[%emt 0:00:00]} Bd6 {[%emt 0:00:53]} 6. Nf3 {[%emt 0:00:53]} O-O {[%emt 0:01:35]} 7. O-O {[%emt 0:00:19]} Bg4 {[%emt 0:01:57]} 8. d4 {[%emt 0:01:32]} Re8 {[%emt 0:06:54]} 9. Qd3 {[%emt 0:05:19]} h6 {[%emt 0:02:46]} 10. Nb5 {[%emt 0:01:54]} a6 {[%emt 0:02:50]} 11. Nxd6 {[%emt 0:00:21]} Qxd6 {[%emt 0:00:13]} 12. Ne5 {[%emt 0:00:59]} Rxe5 {[%emt 0:26:40]} 13. dxe5 {[%emt 0:00:07]} Qb6+ {[%emt 0:00:08]} 14. Kh1 {[%emt 0:02:09]} Nfd7 {[%emt 0:03:13]} 15. Bxf4 {[%emt 0:00:57]} Nc5 {[%emt 0:00:59]} 16. Qg3 {[%emt 0:02:33]} h5 {[%emt 0:01:03]} 17. Be3 {[%emt 0:03:28]} Ne4 {[%emt 0:06:42]} 18. Qf4 {[%emt 0:00:23]} Qg6 {[%emt 0:00:13]} 19. Bd3 {[%emt 0:00:53]} Bf5 {[%emt 0:03:38]} 20. Qxf5 {[%emt 0:00:14]} Qxf5 {[%emt 0:00:09]} 21. Rxf5 {[%emt 0:00:02]} g6 {[%emt 0:00:10]} 22. Rf3 {[%emt 0:00:36]} Nd7 {[%emt 0:00:50]} 23. Bxe4 {[%emt 0:00:11]} Nxe5 {[%emt 0:00:04]} 24. Rff1 {[%emt 0:01:33]} Nc4 {[%emt 0:00:23]} 25. Bd4 {[%emt 0:00:33]} Nd2 {[%emt 0:00:22]} 26. Rfe1 {[%emt 0:00:07]} Re8 {[%emt 0:00:08]} 27. Bd3 {[%emt 0:00:27]} Rd8 {[%emt 0:01:01]} 28. Bc3 {[%emt 0:00:09]} Rxd5 {[%emt 0:00:07]} 29. Bxd2 {[%emt 0:00:04]} Rd8 {[%emt 0:00:13]} 30. Re7 {[%emt 0:00:11]} c5 {[%emt 0:00:10]} 31. Bc3 {[%emt 0:00:52]} b5 {[%emt 0:00:05]} 32. b3 {[%emt 0:00:19]} b4 {[%emt 0:00:17]} 33. Bb2 {[%emt 0:00:05]} Kf8 {[%emt 0:00:08]} 34. Ra7 {[%emt 0:00:32]} a5 {[%emt 0:00:18]} 35. Rf1 {[%emt 0:00:04]} f5 {[%emt 0:00:29]} 36. Bg7+ {[%emt 0:00:44]} Kg8 {[%emt 0:00:18]} 37. Bc4+ {[%emt 0:00:06]} Kh7 {[%emt 0:00:03]} 38. Bf6+ {[%emt 0:00:09]} Kh6 {[%emt 0:00:16]} 39. h4 {[%emt 0:00:45]} g5 {[%emt 0:00:10]} 40. hxg5+ {[%emt 0:00:00]} Kg6 {[%emt 0:00:06]} 41. Rg7# {[%emt 0:00:46] Kxg5 Rxg5} 1-0

[Event "Maria Albulet Memorial 2017"]
[Site "Braila"]
[Date "2017.10.09"]
[Round "3"]
[White "Patru, Alexandra-Ioana"]
[Black "Aciu, Malina-Andreea"]
[Result "0-1"]
[ECO "D05"]
[WhiteElo "1623"]
[BlackElo "2006"]
[Annotator "NA"]
[PlyCount "62"]
[EventDate "2017.??.??"]
[EventCountry "ROU"]
[SourceTitle "playchess.com"]
[Source "ChessBase"]
[SourceQuality "1"]
[TimeControl "40/5400+30:900+30"]

1. d4 {[%emt 0:00:00]} Nf6 {[%emt 0:00:05]} 2. Nf3 {[%emt 0:00:00]} c5 {[%emt 0:00:05]} 3. e3 {[%emt 0:00:00]} e6 {[%emt 0:00:04]} 4. Nbd2 {[%emt 0:00:00]} d5 {[%emt 0:00:15]} 5. b3 {[%emt 0:00:06]} Bd6 {[%emt 0:00:38]} 6. Bb2 {[%emt 0:00:13]} O-O {[%emt 0:02:23]} 7. Bd3 Nc6 8. a3 {[%emt 0:01:17]} Re8 {[%emt 0:03:10]} 9. Ne5 {[%emt 0:09:55]} h6 {[%emt 0:18:27]} 10. O-O {[%emt 0:03:51]} Nd7 {[%emt 0:02:18]} 11. f4 {[%emt 0:02:33]} Ndxe5 {[%emt 0:26:49]} 12. dxe5 {[%emt 0:01:21]} Bc7 {[%emt 0:01:01]} 13. Kh1 {[%emt 0:08:17]} a6 {[%emt 0:02:03]} 14. c4 {[%emt 0:01:53]} Qe7 {[%emt 0:03:10]} 15. Qe2 {[%emt 0:08:01]} b6 {[%emt 0:02:09]} 16. Rf3 {[%emt 0:04:11]} Bb7 {[%emt 0:09:04]} 17. Rg3 {[%emt 0:01:13]} Rad8 {[%emt 0:05:20]} 18. Qg4 {[%emt 0:02:25]} Qf8 {[%emt 0:00:27]} 19. Nf3 {[%emt 0:00:36]} dxc4 {[%emt 0:01:36]} 20. Bxc4 {[%emt 0:00:45]} Na5 {[%emt 0:01:21]} 21. f5 {[%emt 0:01:50]} exf5 {[%emt 0:02:19]} 22. Qxf5 {[%emt 0:00:55]} Nxc4 {[%emt 0:00:28]} 23. bxc4 {[%emt 0:00:22]} Re6 {[%emt 0:01:02]} 24. Rf1 {[%emt 0:01:32]} Rde8 {[%emt 0:01:49]} 25. e4 {[%emt 0:00:38]} Rd8 {[%emt 0:01:54]} 26. Nh4 {[%emt 0:01:01]} Rd2 {[%emt 0:01:39]} 27. Bc3 {[%emt 0:00:52]} Rd8 {[%emt 0:02:19]} 28. Ng6 {[%emt 0:01:24]} Rxg6 {[%emt 0:01:23]} 29. Rxg6 {[%emt 0:00:12]} fxg6 {[%emt 0:00:02]} 30. Qe6+ {[%emt 0:00:38]} Kh7 {[%emt 0:00:07]} 31. Rxf8 {[%emt 0:00:13]} Rd1+ {[%emt 0:00:12]} 0-1

[Event "Maria Albulet Memorial 2017"]
[Site "Braila"]
[Date "2017.10.09"]
[Round "3"]
[White "Andres, Marina-Corina"]
[Black "Uzuneanu, Gabriela"]
[Result "0-1"]
[ECO "C43"]
[WhiteElo "1581"]
[BlackElo "1564"]
[Annotator "NA"]
[PlyCount "98"]
[EventDate "2017.??.??"]
[EventCountry "ROU"]
[SourceTitle "playchess.com"]
[Source "ChessBase"]
[SourceQuality "1"]
[TimeControl "40/5400+30:900+30"]

1. e4 {[%emt 0:00:00]} e5 {[%emt 0:00:05]} 2. Nf3 {[%emt 0:00:00]} Nf6 {[%emt 0:00:08]} 3. d4 {[%emt 0:00:01]} exd4 {[%emt 0:11:23]} 4. e5 {[%emt 0:00:30]} Nd5 {[%emt 0:00:54]} 5. Qxd4 {[%emt 0:03:46]} Nb4 {[%emt 0:09:54]} 6. Qd1 {[%emt 0:04:23]} Be7 {[%emt 0:05:18]} 7. c3 {[%emt 0:03:28]} N4c6 {[%emt 0:00:29]} 8. Bd3 {[%emt 0:00:43]} d6 {[%emt 0:04:42]} 9. exd6 {[%emt 0:02:35]} Bxd6 {[%emt 0:00:31]} 10. O-O {[%emt 0:01:34]} O-O {[%emt 0:01:28]} 11. Re1 {[%emt 0:01:48]} h6 {[%emt 0:06:39]} 12. Be3 {[%emt 0:02:54]} Nd7 {[%emt 0:00:15]} 13. Nbd2 {[%emt 0:04:01]} Nde5 {[%emt 0:05:45]} 14. Nxe5 {[%emt 0:02:54]} Nxe5 {[%emt 0:00:06]} 15. Be2 {[%emt 0:05:46]} Bf5 {[%emt 0:04:09]} 16. Nc4 {[%emt 0:04:04]} Nxc4 {[%emt 0:00:36]} 17. Bxc4 {[%emt 0:00:14]} Qh4 {[%emt 0:00:16]} 18. Qf3 {[%emt 0:12:12]} Bg4 {[%emt 0:04:06]} 19. g3 {[%emt 0:05:49]} Qxh2+ {[%emt 0:00:13]} 20. Kxh2 {[%emt 0:00:25]} Bxf3 {[%emt 0:00:03]} 21. Bf1 {[%emt 0:03:05]} a6 {[%emt 0:01:50]} 22. Bg2 {[%emt 0:00:47]} Bxg2 {[%emt 0:00:20]} 23. Kxg2 {[%emt 0:00:06]} Rfe8 {[%emt 0:00:03]} 24. Rad1 {[%emt 0:06:23]} Re6 {[%emt 0:01:15]} 25. Rd3 {[%emt 0:02:57]} Rae8 {[%emt 0:00:09]} 26. Red1 {[%emt 0:00:37]} Re4 {[%emt 0:04:00]} 27. Rd4 {[%emt 0:05:10]} Rxd4 {[%emt 0:00:59]} 28. Rxd4 {[%emt 0:00:46]} Bc5 {[%emt 0:00:33]} 29. Rd3 {[%emt 0:03:25]} Bxe3 {[%emt 0:01:37]} 30. fxe3 {[%emt 0:00:14]} Re7 {[%emt 0:00:10]} 31. Rd8+ {[%emt 0:00:41]} Kh7 {[%emt 0:00:04]} 32. Kf3 {[%emt 0:00:32]} Kg6 {[%emt 0:00:07]} 33. Rb8 {[%emt 0:02:53]} b6 {[%emt 0:00:04]} 34. Ra8 {[%emt 0:01:29]} a5 {[%emt 0:00:04]} 35. b4 {[%emt 0:04:40]} Re5 {[%emt 0:07:44]} 36. Ra7 {[%emt 0:01:49]} axb4 {[%emt 0:01:53]} 37. cxb4 {[%emt 0:01:35]} Rb5 {[%emt 0:00:16]} 38. a3 {[%emt 0:02:02]} c5 {[%emt 0:00:37]} 39. bxc5 {[%emt 0:00:48]} Rxc5 {[%emt 0:00:04]} 40. Ra6 {[%emt 0:00:00]} Rf5+ {[%emt 0:00:12]} 41. Ke4 {[%emt 0:04:11]} Rf6 {[%emt 0:00:05]} 42. Kd4 {[%emt 0:02:07]} Kg5 {[%emt 0:00:06]} 43. Kc4 {[%emt 0:02:05]} Kg4 {[%emt 0:00:03]} 44. Kb5 {[%emt 0:00:17]} Kxg3 {[%emt 0:00:04]} 45. Rxb6 {[%emt 0:00:44]} Rxb6+ {[%emt 0:00:04]} 46. Kxb6 {[%emt 0:00:05]} h5 {[%emt 0:00:01]} 47. a4 {[%emt 0:00:06]} h4 {[%emt 0:00:03]} 48. a5 {[%emt 0:00:05]} h3 {[%emt 0:00:02]} 49. a6 {[%emt 0:00:05]} h2 {[%emt 0:00:02]} 0-1